bitfinex/quotes_ETHUSD_20250329
["timestamp","ask_amount","ask_price","bid_price","bid_amount"]
[1743244232277,5.31862,1880.2,1879.9,0.8293]
[1743244232478,5.850482,1880.2,1879.8,5.3197]
[1743244232679,11.169322,1880.2,1879.8,5.3197]
[1743244232835,5.31918,1880.0,1879.7,28.13]
[1743244233036,0.782,1880.0,1879.6,10.64008]
[1743244233269,0.782,1880.0,1879.6,15.96025]
[1743244233447,0.782,1880.0,1879.6,10.64008]
[1743244233773,0.782,1880.0,1879.7,5.31996]
[1743244234476,0.782,1880.0,1879.6,10.64008]
[1743244234477,6.711253,1880.0,1879.6,10.64021]
[1743244235045,6.711253,1880.0,1879.6,5.32008]
[1743244235756,1.392103,1880.0,1879.6,10.64015]
[1743244236603,5.31984,1879.8,1879.3,5.32093]
[1743244236771,5.31982,1879.8,1879.4,5.32073]
[1743244237556,10.63966,1879.8,1879.4,5.32073]
[1743244237737,10.63966,1879.8,1879.3,5.32093]
[1743244238183,5.32017,1879.7,1879.3,5.32093]
[1743244239171,6.13678,1879.6,1879.2,6.1146]
[1743244239375,5.32057,1879.5,1879.2,0.7933]
[1743244239674,5.32057,1879.5,1879.1,0.05]
[1743244240183,0.5805644,1879.5,1879.1,0.05]
[1743244240382,5.32141,1879.2,1879.1,0.05]
[1743244240687,6.13791,1879.2,1879.1,0.05]
[1743244241055,0.8165,1879.2,1879.1,0.05]
[1743244241770,6.13791,1879.2,1879.1,0.05]
[1743244242188,0.8165,1879.2,1879.1,0.05]
[1743244242479,6.751686,1879.2,1879.1,0.05]
[1743244242984,1.430276,1879.2,1879.1,0.05]
[1743244243550,5.32088,1879.4,1879.1,0.05]
[1743244243756,6.13738,1879.4,1879.1,0.05]
[1743244244493,5.32134,1879.3,1879.1,0.05]
[1743244244796,5.32141,1879.2,1879.1,0.05]
[1743244245096,5.32134,1879.3,1879.1,0.05]
[1743244245292,5.935124,1879.3,1879.1,0.05]
[1743244245798,11.256374,1879.3,1879.1,0.05]
[1743244245994,5.32141,1879.2,1879.1,0.05]
[1743244246489,5.935034,1879.3,1879.1,0.05]
[1743244247102,0.613784,1879.3,1879.1,0.05]
[1743244247256,0.8165,1879.4,1879.1,0.05]
[1743244247588,11.45795,1879.5,1879.1,0.05]
[1743244247800,6.13721,1879.5,1879.1,5.37158]
[1743244248090,6.13721,1879.5,1879.1,0.05]
[1743244248389,6.13721,1879.5,1879.1,5.37153]
[1743244248968,5.32088,1879.4,1879.1,0.05]
[1743244249499,10.64191,1879.4,1879.1,0.05]
[1743244249795,6.1371,1879.5,1879.1,0.05]
[1743244250192,6.1371,1879.5,1879.1,5.37169]
[1743244250582,0.8165,1879.5,1879.1,5.37169]
[1743244250751,5.32043,1879.6,1879.1,11.841824]
[1743244251095,0.8106,1879.7,1879.3,0.8226]
[1743244251396,0.8106,1879.7,1879.3,6.1435]
[1743244251754,11.785336,1879.8,1879.3,6.1435]
[1743244251955,6.465456,1879.8,1879.4,5.32072]
[1743244252179,5.31934,1880.0,1879.6,5.3201]
[1743244253396,5.31934,1880.0,1879.5,6.14297]
[1743244253610,6.12946,1880.1,1879.7,5.31991]
[1743244253798,11.44846,1880.1,1879.7,5.31991]
[1743244254300,5.3192,1880.0,1879.6,5.32025]
[1743244254452,5.3192,1880.0,1879.6,5.32022]
[1743244255521,6.12946,1880.1,1879.6,5.32003]
[1743244255818,6.12946,1880.1,1879.7,5.31994]
[1743244256715,5.31927,1880.0,1879.6,5.32003]
[1743244257309,5.31943,1879.9,1879.5,3.8226]
[1743244257510,6.13049,1879.8,1879.4,5.319]
[1743244257676,6.13049,1879.8,1879.4,13.6928628]
[1743244257872,6.13049,1879.8,1879.4,13.63966]
[1743244260011,6.743539,1879.8,1879.4,5.32066]
[1743244260379,12.063399,1879.8,1879.3,6.14366]
[1743244260705,12.063479,1879.8,1879.3,11.46453]
[1743244260905,5.32002,1879.7,1879.3,6.14347]
[1743244261289,5.32002,1879.7,1879.2,9.14397]
[1743244261517,5.9943869,1879.7,1879.3,5.32112]
[1743244264418,0.8106,1879.8,1879.5,5.32051]
[1743244264788,5.31948,1879.9,1879.5,6.08507]
[1743244265121,11.40755,1880.0,1879.6,5.32018]
[1743244265496,6.463714,1880.1,1879.7,5.31999]
[1743244265936,6.463714,1880.1,1879.6,5.32018]
[1743244266229,6.463714,1880.1,1879.7,5.31999]
[1743244266922,1.144804,1880.1,1879.6,5.32018]
[1743244267122,5.32006,1879.7,1879.3,6.0857]
[1743244267329,5.31993,1879.8,1879.4,3.0]
[1743244267490,5.31993,1879.8,1879.4,8.3207]
[1743244268197,5.31993,1879.8,1879.4,8.37390292]
[1743244268397,5.31993,1879.8,1879.4,8.3207]
[1743244269295,6.460997,1879.8,1879.4,8.3207]
[1743244270220,11.780987,1879.8,1879.3,11.4066]
[1743244270425,6.460997,1879.8,1879.3,11.4066]
[1743244270736,5.32016,1879.7,1879.3,6.08559]
[1743244270941,10.64039,1879.7,1879.3,6.08559]
[1743244271134,6.09171,1879.6,1879.2,8.32131]
[1743244271295,5.32016,1879.7,1879.2,8.37436718]
[1743244271499,5.32016,1879.7,1879.3,10.6418]
[1743244271699,11.4109,1879.8,1879.4,5.32075]
[1743244271900,5.3201,1879.7,1879.3,5.3209]
[1743244272301,10.64035,1879.7,1879.2,8.32134]
[1743244272621,6.0919,1879.5,1879.2,3.0]
[1743244273213,0.7713,1879.5,1879.2,8.3214]
[1743244273843,7.232475,1879.7,1879.2,8.37445827]
[1743244274231,7.232475,1879.7,1879.3,5.321]
[1743244275003,1.912465,1879.7,1879.3,10.64191]
[1743244275344,0.7713,1879.7,1879.3,5.32091]
[1743244276145,0.7713,1879.7,1879.3,10.64193]
[1743244276545,0.7713,1879.7,1879.4,5.32068]
[1743244278024,5.31971,1879.8,1879.4,6.14448]
[1743244278321,6.10824,1879.9,1879.5,5.32035]
[1743244278525,6.10791,1880.1,1879.7,5.31999]
[1743244278754,6.10791,1880.1,1879.7,6.14379]
[1743244281338,5.31864,1880.2,1879.7,6.14357]
[1743244281548,6.10737,1880.3,1880.0,0.8238]
[1743244281549,5.31857,1880.3,1880.0,0.8238]
[1743244282756,10.63704,1880.3,1880.0,0.8238]
[1743244283130,5.31841,1880.3,1880.0,0.8238]
[1743244285860,6.10679,1880.5,1880.0,6.14294]
[1743244286061,5.31749,1880.6,1880.2,5.31835]
[1743244286232,6.10616,1880.7,1880.4,0.8238]
[1743244286233,5.31736,1880.7,1880.4,0.8238]
[1743244286760,12.08839045,1880.8,1880.4,6.14181]
[1743244286962,6.77639045,1880.8,1880.4,6.14181]
[1743244287170,5.312,1881.1,1880.6,5.31732]
[1743244287171,6.10499,1881.1,1880.6,5.31732]
[1743244287327,5.31638,1881.0,1880.7,0.8238]
[1743244288053,6.10499,1881.1,1880.5,0.8238]
[1743244288054,5.31672,1880.9,1880.5,0.8238]
[1743244288216,5.31688,1880.8,1880.5,0.8238]
[1743244289181,0.7888,1881.1,1880.5,0.8238]
[1743244289361,7.58188526,1881.1,1880.7,5.31713]
[1743244289519,7.58188526,1881.1,1880.6,5.31723]
[1743244289719,6.10494,1881.1,1880.6,5.31723]
[1743244289919,6.10494,1881.1,1880.6,10.63445]
[1743244290133,6.10494,1881.1,1880.7,5.31716]
[1743244290527,5.31634,1881.0,1880.6,5.31722]
[1743244291267,5.31662,1880.9,1880.5,6.14152]
[1743244292334,5.31662,1880.9,1880.5,7.287473]
[1743244292546,5.31643,1881.0,1880.5,7.287283]
[1743244293135,5.31643,1881.0,1880.6,5.31734]
[1743244293777,5.31672,1880.9,1880.5,7.287283]
[1743244295364,6.10484,1881.1,1880.6,5.37056837]
[1743244295663,6.35285262,1881.3,1880.6,5.37056837]
[1743244295664,6.12989,1881.3,1880.8,6.08114]
[1743244296041,6.12989,1881.3,1880.9,5.31651]
[1743244296564,10.63065,1881.4,1880.9,5.31637]
[1743244296865,0.8144,1881.5,1881.0,5.31608]
[1743244297064,6.12952,1881.5,1881.1,1.296108]
[1743244297253,6.12952,1881.5,1881.1,0.7645]
[1743244297459,6.12945,1881.5,1881.1,0.7645]
[1743244297858,6.12945,1881.5,1881.1,6.08049]
[1743244298769,11.4446,1881.5,1881.1,0.7645]
[1743244299272,5.31531,1881.4,1881.1,0.7645]
[1743244301882,5.31623,1881.1,1880.7,6.13384]
[1743244302105,10.63302,1881.0,1880.7,0.8169]
[1743244302388,6.09309,1881.0,1880.6,8.31745]
[1743244302946,6.09309,1881.0,1880.6,9.762658]
[1743244303146,6.09305,1881.0,1880.6,9.762658]
[1743244303557,5.31665,1880.9,1880.5,6.13459]
[1743244303952,10.63352,1880.9,1880.5,0.8169]
[1743244304173,5.31665,1880.9,1880.5,0.8169]
[1743244304470,5.31665,1880.9,1880.5,9.13461]
[1743244304680,10.63337,1880.9,1880.5,9.13461]
[1743244305777,5.31721,1880.7,1880.4,3.0]
[1743244305979,5.31713,1880.8,1880.4,8.31796]
[1743244306382,5.31674,1880.9,1880.4,8.37101417]
[1743244306572,5.31674,1880.9,1880.5,5.31762]
[1743244307175,10.63357,1880.9,1880.5,5.31762]
[1743244307487,5.31691,1880.8,1880.4,8.31784]
[1743244307881,5.31691,1880.8,1880.4,8.37101417]
[1743244308087,11.774597,1880.9,1880.5,5.31772]
[1743244308300,6.09298,1881.0,1880.6,6.0762]
[1743244309286,11.40953,1881.0,1880.6,6.0762]
[1743244309901,6.09298,1881.0,1880.6,6.0762]
[1743244310109,5.3168,1880.9,1880.6,0.7589]
[1743244310261,5.31704,1880.8,1880.4,9.07691]
[1743244310797,5.31661,1880.9,1880.4,9.07671]
[1743244311094,5.317,1880.8,1880.4,9.07671]
[1743244311296,5.317,1880.8,1880.4,14.39459]
[1743244311593,5.317,1880.8,1880.4,15.834049]
[1743244312197,5.31661,1880.9,1880.5,5.31766]
[1743244312698,5.31691,1880.8,1880.4,15.834069]
[1743244313060,1.917503,1881.0,1880.4,5.198359]
[1743244313389,5.31614,1881.1,1880.7,6.07595]
[1743244313582,5.31614,1881.1,1880.7,0.7589]
[1743244313761,5.31636,1881.0,1880.7,0.7589]
[1743244314365,10.63291,1881.0,1880.7,0.7589]
[1743244314584,5.31636,1881.0,1880.7,0.7589]
[1743244314795,10.63296,1881.0,1880.7,0.7589]
[1743244315092,5.31636,1881.0,1880.7,0.7589]
[1743244317094,5.31636,1881.0,1880.5,5.31772]
[1743244317095,5.31661,1880.9,1880.5,5.31772]
[1743244317392,5.31689,1880.8,1880.4,6.07691]
[1743244317599,0.8159,1880.7,1880.4,5.31801]
[1743244317891,5.31794,1880.5,1880.1,6.09189]
[1743244318798,6.10142,1880.4,1880.0,10.62186]
[1743244319095,6.10142,1880.4,1880.0,15.94079]
[1743244319295,6.10142,1880.4,1880.0,13.49335324]
[1743244319497,6.10134,1880.5,1880.1,5.3187]
[1743244320178,6.10124,1880.5,1880.1,5.31885]
[1743244322191,6.10124,1880.5,1880.0,13.49363324]
[1743244322398,5.31807,1880.4,1880.0,13.49363324]
[1743244322765,5.31807,1880.4,1880.0,18.81265324]
[1743244323109,6.10124,1880.5,1880.0,18.81265324]
[1743244323265,6.10124,1880.5,1880.0,13.49351324]
[1743244323465,5.31801,1880.4,1879.9,3.0]
[1743244323673,5.31844,1880.3,1879.9,8.37247794]
[1743244323962,5.31844,1880.3,1879.9,13.69167794]
[1743244324163,5.31801,1880.4,1880.0,5.31914]
[1743244325299,6.711264,1880.5,1880.0,10.63803]
[1743244325601,12.029234,1880.5,1880.0,10.63803]
[1743244325990,5.31807,1880.4,1880.0,5.31889]
[1743244326170,5.31807,1880.4,1880.0,10.63793]
[1743244326801,5.31807,1880.4,1880.0,5.31889]
[1743244327002,5.31807,1880.4,1880.0,6.682683]
[1743244329102,5.31808,1880.4,1880.0,6.682683]
[1743244329399,5.31845,1880.3,1880.0,1.363793]
[1743244329602,5.31845,1880.3,1879.9,13.63884]
[1743244329969,5.31845,1880.3,1879.9,8.31942]
[1743244330303,3.35285262,1880.2,1879.6,7.23647172]
[1743244330600,5.31802,1880.4,1879.5,5.3205]
[1743244330601,5.31951,1879.9,1879.5,5.3205]
[1743244330979,5.31951,1879.9,1879.6,3.0]
[1743244331175,5.31941,1880.0,1879.6,8.3202]
[1743244331380,6.12133,1880.1,1879.7,5.31986]
[1743244332080,11.44042,1880.1,1879.7,5.31986]
[1743244332276,5.3192,1880.0,1879.6,8.3202]
[1743244332692,4.95482493,1880.1,1879.4,0.8254]
[1743244332902,5.31955,1879.9,1879.5,5.32055]
[1743244333203,5.31973,1879.8,1879.4,11.46674]
[1743244333702,5.31973,1879.8,1879.4,6.14601]
[1743244333904,11.44211,1879.8,1879.4,0.8254]
[1743244334089,11.44208,1879.8,1879.4,6.14618]
[1743244334298,6.12213,1879.8,1879.4,0.8254]
[1743244334498,5.32,1879.7,1879.4,0.8254]
[1743244334804,5.32044,1879.6,1879.3,0.8254]
[1743244334970,6.464213,1879.7,1879.3,0.8254]
[1743244335170,6.464213,1879.7,1879.3,6.14646]
[1743244335585,5.32,1879.7,1879.3,6.14646]
[1743244335786,6.12211,1879.8,1879.3,11.46734]
[1743244335968,6.12211,1879.8,1879.4,5.32077]
[1743244337318,11.44208,1879.8,1879.3,6.14628]
[1743244337518,10.6408,1879.6,1879.2,5.3214]
[1743244337671,5.32035,1879.6,1879.2,6.1281]
[1743244337872,10.6408,1879.6,1879.2,6.1281]
[1743244338111,5.32035,1879.6,1879.2,6.1281]
[1743244338288,3.35285262,1879.7,1879.1,8.37168]
[1743244338485,5.32069,1879.5,1879.1,5.37168]
[1743244340294,5.32095,1879.4,1879.1,0.05]
[1743244340494,5.32069,1879.5,1879.1,0.05]
[1743244340706,5.32069,1879.5,1879.1,5.37163]
[1743244341409,10.64148,1879.5,1879.1,5.37163]
[1743244341744,6.49629653,1879.5,1879.1,5.37163]
[1743244341937,5.32084,1879.4,1879.1,0.05]
[1743244342088,5.32139,1879.3,1879.1,0.05]
[1743244342284,5.32141,1879.2,1879.1,0.05]
[1743244342484,8.67426262,1879.2,1879.1,0.05]
[1743244342834,10.15175788,1879.2,1879.1,0.05]
[1743244344101,1.47749526,1879.2,1879.1,0.05]
[1743244344278,5.32141,1879.2,1879.1,0.05]
[1743244345182,6.10063,1879.3,1879.1,0.05]
[1743244345379,5.32141,1879.2,1879.1,0.05]
[1743244345999,9.45356262,1879.2,1879.1,0.05]
[1743244346594,12.80641524,1879.2,1879.1,0.05]
[1743244346829,14.26633714,1879.2,1879.1,0.05]
[1743244348335,17.61918976,1879.2,1879.1,0.05]
[1743244348746,14.26633714,1879.2,1879.1,0.05]
[1743244349099,20.62289481,1879.2,1879.1,0.05]
[1743244349436,12.32089481,1879.2,1879.1,0.05]
[1743244349605,17.62189481,1879.2,1879.1,0.05]
[1743244350237,12.43518452,1879.2,1879.1,0.05]
[1743244350435,7.13418452,1879.2,1879.1,0.05]
[1743244350626,1.81277452,1879.2,1879.1,0.05]
[1743244350830,5.32133,1879.3,1879.1,0.05]
[1743244351608,5.32141,1879.2,1879.1,0.05]
[1743244352937,8.67426262,1879.2,1879.1,0.05]
[1743244354326,9.43956262,1879.2,1879.1,0.05]
[1743244356566,12.79241524,1879.2,1879.1,0.05]
[1743244356730,15.20978976,1879.2,1879.1,0.05]
[1743244356937,11.85693714,1879.2,1879.1,0.05]
[1743244357252,14.85693714,1879.2,1879.1,0.05]
[1743244357434,15.91966122,1879.2,1879.1,0.05]
[1743244357631,15.91966122,1879.2,1878.2,0.7715]
[1743244357632,0.7653,1878.7,1878.2,0.7715]
[1743244357952,5.32353,1878.5,1878.2,0.7715]
[1743244358759,3.35285262,1878.6,1878.2,0.7715]
[1743244358956,5.32394,1878.4,1878.1,0.8215]
[1743244359255,11.51555926,1878.4,1878.1,0.8215]
[1743244359452,6.19161926,1878.4,1878.1,0.8215]
[1743244360665,11.51544926,1878.4,1878.1,0.8215]
[1743244360962,5.32398,1878.3,1878.1,0.8215]
[1743244361461,9.44239262,1878.2,1878.1,0.05]
[1743244361630,9.97479062,1878.2,1878.1,0.05]
[1743244362161,6.621938,1878.2,1878.1,0.05]
[1743244362662,9.97479062,1878.2,1878.1,0.05]
[1743244363968,12.97479062,1878.2,1878.1,0.05]
[1743244367581,8.856638,1878.2,1878.1,0.05]
[1743244369074,5.856638,1878.2,1878.1,0.05]
[1743244369317,5.32398,1878.3,1878.1,0.05]
[1743244369577,5.32424,1878.2,1878.1,0.05]
[1743244370374,8.67683262,1878.3,1878.1,0.05]
[1743244370536,10.64821,1878.3,1878.1,0.05]
[1743244370740,10.64821,1878.3,1878.1,0.8186]
[1743244370741,5.32398,1878.3,1878.1,0.8186]
[1743244371147,5.32424,1878.2,1878.1,0.8186]
[1743244372273,10.64817,1878.3,1878.1,0.8186]
[1743244372941,12.40575493,1878.3,1878.1,0.8186]
[1743244373142,5.32424,1878.2,1878.1,0.8186]
[1743244373465,5.32424,1878.2,1878.1,0.05]
[1743244374766,9.46429262,1878.2,1878.1,0.05]
[1743244374971,8.67709262,1878.2,1878.1,0.05]
[1743244375166,10.25295838,1878.2,1878.1,0.05]
[1743244375940,7.08156493,1878.3,1878.1,0.05]
[1743244376158,5.32398,1878.3,1878.1,0.8186]
[1743244376764,10.64819,1878.3,1878.1,0.8186]
[1743244377082,5.32424,1878.2,1878.1,0.8186]
[1743244377264,10.64816,1878.3,1878.1,0.8186]
[1743244378272,5.32424,1878.2,1878.1,0.8186]
[1743244378441,6.389062,1878.2,1878.1,0.05]
[1743244379044,5.32398,1878.3,1878.1,0.05]
[1743244379245,10.64813,1878.3,1878.1,0.05]
[1743244379445,5.32424,1878.2,1878.1,0.05]
[1743244379750,5.32398,1878.3,1878.1,0.05]
[1743244379948,10.64805,1878.3,1878.1,0.05]
[1743244380188,12.13490819,1878.3,1878.1,0.05]
[1743244380345,6.81083819,1878.3,1878.1,0.05]
[1743244381277,5.32424,1878.2,1878.1,0.05]
[1743244387290,9.13224,1878.2,1878.1,0.05]
[1743244388100,12.48509262,1878.2,1878.1,0.05]
[1743244388282,15.13721745,1878.2,1878.1,0.05]
[1743244389374,21.83503715,1878.2,1878.1,1e-05]
[1743244390080,22.38503715,1878.2,1878.1,1e-05]
[1743244390398,0.808,1878.0,1877.1,0.8284]
[1743244390567,5.3267,1877.4,1877.1,0.8284]
[1743244390910,8.67904262,1877.6,1877.2,0.7784]
[1743244390911,5.32629,1877.5,1877.2,0.7784]
[1743244391676,5.32666,1877.4,1877.2,0.7784]
[1743244392221,5.32679,1877.3,1877.2,0.7784]
[1743244392377,5.32666,1877.4,1877.2,0.7784]
[1743244393080,5.32627,1877.5,1877.2,0.7784]
[1743244393619,5.32679,1877.3,1877.1,0.05]
[1743244395130,6.37545365,1877.7,1877.3,0.7784]
[1743244395131,5.32573,1877.7,1877.3,0.7784]
[1743244395333,15.94918,1877.8,1877.4,0.7784]
[1743244395482,15.94909,1877.8,1877.4,0.7784]
[1743244395681,5.32553,1877.8,1877.4,6.10487]
[1743244395881,5.32548,1877.8,1877.5,0.7784]
[1743244396314,10.62312,1877.9,1877.5,6.10458]
[1743244396719,5.32512,1877.9,1877.5,6.10458]
[1743244396911,10.62259,1878.1,1877.7,6.10405]
[1743244397889,5.32481,1878.0,1877.7,0.7784]
[1743244398480,10.64986,1878.0,1877.7,0.7784]
[1743244398807,5.32481,1878.0,1877.7,0.7784]
[1743244399006,5.32481,1878.0,1877.7,0.77189902]
[1743244399312,12.57987926,1878.0,1877.7,0.77189902]
[1743244399811,7.25482926,1878.0,1877.7,0.77189902]
[1743244400017,5.298,1878.1,1877.7,0.77189902]
[1743244400396,10.62268,1878.1,1877.7,6.09744902]
[1743244401317,5.32449,1878.2,1877.8,5.32535]
[1743244401491,5.32436,1878.2,1877.8,5.32535]
[1743244401686,5.32476,1878.1,1877.6,5.32594]
[1743244402008,5.32484,1878.0,1877.7,0.7562]
[1743244402208,5.32456,1878.1,1877.7,6.08181]
[1743244403092,5.32425,1878.2,1877.8,5.32536]
[1743244403417,1.54619608,1878.2,1877.9,6.08124]
[1743244403614,1.54619608,1878.2,1877.9,0.7562]
[1743244404735,6.38808507,1878.7,1878.0,0.7562]
[1743244404891,6.38808507,1878.7,1877.8,0.05324885]
[1743244404892,10.62011,1878.6,1878.3,0.7562]
[1743244405492,5.32299,1878.7,1878.3,0.7562]
[1743244405688,1.138299,1878.7,1878.3,0.7562]
[1743244405916,1.138299,1878.7,1878.4,0.7562]
[1743244406290,1.138299,1878.7,1878.4,6.07985]
[1743244406819,1.138299,1878.7,1878.5,0.7562]
[1743244407021,6.41068706,1879.1,1878.7,0.7562]
[1743244407318,10.61781,1879.1,1878.7,0.7562]
[1743244407518,10.61781,1879.1,1878.7,6.0789]
[1743244407519,5.296,1879.1,1878.7,6.0789]
[1743244408024,5.32303,1878.7,1878.5,0.7562]
[1743244408241,0.532303,1878.6,1878.5,0.7562]
[1743244408403,5.32226,1878.9,1878.5,0.7562]
[1743244408930,10.61713,1879.0,1878.5,6.07947]
[1743244409089,15.93937,1879.0,1878.5,6.07947]
[1743244409297,6.10074,1879.2,1878.7,5.32282]
[1743244409492,0.610074,1879.1,1878.8,6.07873]
[1743244410120,0.610074,1879.1,1878.8,0.7562]
[1743244410329,5.931804,1879.1,1878.8,0.7562]
[1743244410823,0.610074,1879.1,1878.8,0.7562]
[1743244411129,0.610074,1879.1,1878.8,6.0787]
[1743244411324,0.610074,1879.1,1878.8,6.07858]
[1743244411625,8.67399262,1879.3,1878.8,11.401]
[1743244411825,8.67399262,1879.3,1878.9,5.32217]
[1743244412428,3.35285262,1879.3,1879.0,5.32196]
[1743244412722,16.71519,1879.4,1879.0,0.7562]
[1743244412723,15.93594,1879.4,1879.0,0.7562]
[1743244413234,5.32113,1879.3,1879.0,0.7562]
[1743244413434,6.91474,1879.3,1879.0,0.7562]
[1743244415930,12.23612,1879.3,1879.0,0.7562]
[1743244416332,6.91474,1879.3,1879.0,0.7562]
[1743244416711,12.23613,1879.3,1879.0,0.7562]
[1743244417033,5.32146,1879.2,1879.0,0.7562]
[1743244417241,6.91474,1879.3,1878.8,5.32231]
[1743244417242,5.32202,1879.0,1878.8,0.7816]
[1743244417824,5.32192,1879.1,1878.8,0.7816]
[1743244418206,10.64308,1879.2,1878.8,0.7816]
[1743244418406,5.32176,1879.1,1878.8,0.7816]
[1743244418606,6.386078,1879.1,1878.8,0.7816]
[1743244419234,5.32265,1878.8,1878.5,0.768]
[1743244419446,5.32198,1879.0,1878.6,5.32303]
[1743244419618,6.386018,1879.1,1878.7,6.09082]
[1743244419938,5.32216,1879.0,1878.7,0.768]
[1743244420138,5.32237,1878.9,1878.7,0.768]
[1743244420310,5.32216,1879.0,1878.7,0.768]
[1743244420511,5.9608078,1879.0,1878.7,0.768]
[1743244422142,11.2830278,1879.0,1878.7,0.768]
[1743244422844,0.6386478,1879.0,1878.7,6.09078]
[1743244423215,5.32117,1879.3,1878.9,0.768]
[1743244423413,5.32117,1879.3,1878.9,6.09021]
[1743244424037,10.64253,1879.3,1878.9,0.768]
[1743244424347,5.3215,1879.2,1878.9,0.768]
[1743244425011,5.3217,1879.1,1878.9,0.768]
[1743244425215,6.385767,1879.2,1878.9,0.768]
[1743244427013,13.96570262,1879.4,1878.9,0.768]
[1743244427348,5.32118,1879.3,1878.9,11.41207]
[1743244427645,10.61167,1879.5,1879.1,5.32146]
[1743244427808,15.93249,1879.5,1879.1,5.32146]
[1743244428013,5.32087,1879.4,1879.0,6.08997]
[1743244428209,10.61167,1879.5,1879.1,5.32146]
[1743244428420,12.09084226,1879.5,1879.1,5.32146]
[1743244428753,17.41163226,1879.5,1879.1,5.32146]
[1743244429475,5.32032,1879.6,1879.2,6.13244]
[1743244429815,5.32084,1879.4,1879.2,0.8112]
[1743244430217,5.32046,1879.6,1879.2,6.13251]
[1743244430417,5.32046,1879.6,1879.2,0.8112]
[1743244430629,5.32077,1879.5,1879.2,0.8112]
[1743244430948,5.32058,1879.5,1879.2,0.8112]
[1743244431351,10.6409,1879.6,1879.2,6.1326]
[1743244431551,12.56927526,1879.6,1879.2,6.1326]
[1743244431849,12.56921526,1879.6,1879.2,6.1326]
[1743244432221,7.24877526,1879.6,1879.2,6.1326]
[1743244432553,1.92837526,1879.6,1879.2,11.45388]
[1743244432753,5.29,1879.7,1879.3,5.32087]
[1743244432920,0.05,1879.9,1879.6,5.32015]
[1743244433119,0.05,1879.9,1879.7,0.8112]
[1743244433322,0.05,1879.9,1879.8,5.31971]
[1743244433538,0.05,1879.9,1879.8,6.13091]
[1743244433845,0.05,1879.9,1879.8,0.8112]
[1743244434319,0.05,1879.9,1879.8,6.13091]
[1743244435051,0.05,1879.9,1879.8,7.275972]
[1743244442638,0.05,1879.9,1879.8,7.32916175]
[1743244443036,0.05,1879.9,1879.8,10.87916175]
[1743244443234,0.05,1879.9,1879.8,10.825972]
[1743244452165,0.05,1879.9,1879.8,10.275972]
[1743244452578,0.05,1879.9,1879.8,10.825972]
[1743244453869,0.05,1879.9,1879.8,10.275972]
[1743244454184,0.05,1879.9,1879.8,4.956262]
[1743244454494,0.05,1879.9,1879.8,4.145062]
[1743244454688,0.05,1879.9,1879.8,3.0]
[1743244454858,0.05,1879.9,1879.6,5.32027]
[1743244455057,0.8759,1879.9,1879.6,5.32027]
[1743244456391,0.8759,1879.9,1879.4,0.8278]
[1743244456565,6.14635,1879.6,1879.1,5.32155]
[1743244456890,5.32069,1879.5,1879.0,6.14974]
[1743244457092,5.32086,1879.4,1879.0,11.4716]
[1743244457385,5.32086,1879.4,1879.0,5.32186]
[1743244457588,0.8259,1879.3,1878.9,10.64424]
[1743244457760,0.8259,1879.3,1879.0,8.32197]
[1743244458661,1.366235,1879.6,1879.1,5.37465477]
[1743244458888,6.686695,1879.6,1879.1,5.32144]
[1743244459063,5.3207,1879.5,1879.1,5.32144]
[1743244460591,11.8422695,1879.5,1879.0,8.32193]
[1743244460889,6.5214195,1879.5,1879.0,13.64368]
[1743244461088,5.32095,1879.4,1879.1,14.5]
[1743244461487,0.7516,1879.3,1879.1,14.5]
[1743244461692,7.2730195,1879.5,1879.1,19.82167]
[1743244462188,5.32089,1879.4,1879.1,14.5]
[1743244462692,7.2730195,1879.5,1879.1,14.5]
[1743244463092,7.2730195,1879.5,1879.1,19.82168]
[1743244463272,0.7516,1879.5,1879.1,19.82151]
[1743244463675,0.7516,1879.5,1879.1,19.82145]
[1743244463875,6.07222,1879.5,1879.1,19.82145]
[1743244465876,11.39302,1879.5,1879.1,19.82145]
[1743244466068,6.07222,1879.5,1879.1,19.82145]
[1743244466270,5.32127,1879.3,1879.1,14.5]
[1743244466493,6.07301,1879.2,1878.8,3.0]
[1743244466693,6.07301,1879.2,1878.8,8.3225]
[1743244466899,6.07301,1879.2,1878.8,22.8225]
[1743244467199,6.07301,1879.2,1878.8,19.8225]
[1743244467372,5.3217,1879.1,1878.7,5.3226]
[1743244467573,7.212438,1879.2,1878.6,0.7655]
[1743244467574,5.32209,1879.0,1878.6,0.7655]
[1743244467796,0.7516,1878.9,1878.6,5.32304]
[1743244468015,0.7516,1878.9,1878.6,19.82304]
[1743244468307,0.7516,1878.9,1878.6,19.82295]
[1743244469097,6.07387,1878.9,1878.6,14.5]
[1743244470199,10.64535,1878.8,1878.4,5.283]
[1743244470382,10.64535,1878.8,1878.3,9.0894]
[1743244470577,5.32287,1878.7,1878.3,19.8239]
[1743244470783,0.7516,1878.6,1878.3,19.8239]
[1743244471179,0.7516,1878.6,1878.0,5.283]
[1743244471180,6.07473,1878.6,1878.0,6.09009]
[1743244471403,5.32353,1878.5,1878.0,11.4147]
[1743244471592,5.32353,1878.5,1878.1,5.3244]
[1743244471901,0.7516,1878.6,1878.3,5.32374]
[1743244472070,6.07421,1878.8,1878.3,13.16762171]